fUST/lending_fUST_20260611
["ID","MTS","AMOUNT","RATE_DAILY","PERIOD"]
[424739374,1781107237000,-271.7085325,0.00011385,2]
[424739371,1781107237000,-4286.79009657,0.00011271,2]
[424739373,1781107237000,-343.69573375,0.00011385,2]
[424739372,1781107237000,-713.20990343,0.00011271,2]
[424739375,1781107253000,343.69573375,0.00011385,2]
[424739376,1781107272000,-4656.30426625,0.00011385,2]
[424739377,1781107289000,-5000.0,0.00011385,2]
[424739378,1781107306000,-1056.90563718,0.000115,2]
[424739379,1781107323000,-5000.0,0.000161,2]
[424739380,1781107339000,-344.75394042,0.00017337,7]
[424739381,1781107356000,-155.26695737,0.000174,2]
[424739382,1781107544000,152.0,0.00020623,30]
[424739383,1781107545000,152.0,0.00020623,30]
[424739432,1781107832000,-300.0,0.00017861,2]
[424739430,1781107832000,-300.0,0.00017861,2]
[424739434,1781107832000,-300.0,0.00017861,2]
[424739426,1781107832000,-1671.86889475,0.00017226,2]
[424739424,1781107832000,-3328.13110525,0.00017226,2]
[424739428,1781107832000,-344.75394042,0.00017684,7]
[424739436,1781107832000,-300.0,0.00017861,2]
[424739439,1781107832000,-92.31985532,0.00017861,2]
[424739441,1781107832000,-207.68014468,0.00017861,2]
[424739445,1781107832000,-97.84920568,0.00017861,2]
[424739443,1781107832000,-300.0,0.00017861,2]
[424739449,1781107832000,-300.0,0.00017861,2]
[424739451,1781107832000,-81.65094867,0.00017861,2]
[424739447,1781107832000,-202.15079432,0.00017861,2]
[424739458,1781107832000,-284.52680166,0.00017861,2]
[424739456,1781107832000,-300.0,0.00017861,2]
[424739454,1781107832000,-218.34905133,0.00017861,2]
[424739570,1781107841000,-2343.34054663,0.00017682,2]
[424739571,1781107841000,-2656.65945337,0.00017682,2]
[424739572,1781107841000,-15.47319834,0.00017861,2]
[424739574,1781107841000,-300.0,0.00017861,2]
[424739573,1781107841000,-300.0,0.00017861,2]
[424739576,1781107841000,-300.0,0.00017861,2]
[424739577,1781107841000,-414.15621599,0.00017861,2]
[424739578,1781107841000,-185.84378401,0.00017861,2]
[424739581,1781107841000,-188.440333,0.0001823,2]
[424739580,1781107841000,-344.75394042,0.00018204,7]
[424739582,1781107841000,-344.75394042,0.00018724,7]
[424739579,1781107841000,-192.19244477,0.00017911,2]
[424739583,1781107841000,-500.0,0.00019178,2]
[424739586,1781107841000,-500.0,0.00019452,2]
[424739584,1781107841000,-500.0,0.00019178,2]
[424739585,1781107841000,-344.75394042,0.00019417,7]
[424739588,1781107841000,-429.3828726,0.00019452,2]
[424739575,1781107841000,-300.0,0.00017861,2]
[424739625,1781107848000,-500.0,0.00020821,2]
[424739626,1781107848000,-500.0,0.00020821,2]
[424739628,1781107848000,-500.0,0.00021095,2]
[424739634,1781107848000,-500.0,0.00021643,2]
[424739635,1781107848000,-185.2433232,0.00021917,2]
[424739627,1781107848000,-500.0,0.00021095,2]
[424739623,1781107848000,-500.0,0.00020547,2]
[424739633,1781107848000,-500.0,0.00021643,2]
[424739636,1781107848000,-314.7566768,0.00021917,2]
[424739621,1781107848000,-500.0,0.00020273,2]
[424739616,1781107848000,-500.0,0.00019726,2]
[424739624,1781107848000,-500.0,0.00020547,2]
[424739620,1781107848000,-186.0,0.0002013,2]
[424739617,1781107848000,-624.59,0.0002,3]
[424739622,1781107848000,-500.0,0.00020273,2]
[424739618,1781107848000,-500.0,0.0002,2]
[424739615,1781107848000,-500.0,0.00019726,2]
[424739614,1781107848000,-720.0,0.00019647,2]
[424739613,1781107848000,-70.6171274,0.00019452,2]
[424739630,1781107848000,-500.0,0.00021369,2]
[424739619,1781107848000,-500.0,0.0002,2]
[424739632,1781107848000,-178.209,0.00021612,2]
[424739629,1781107848000,-500.0,0.00021369,2]
[424739637,1781107848000,-546.54759005,0.00021917,2]
[424739655,1781107848000,-258.35907762,0.00023367,3]
[424739631,1781107848000,-864.0,0.00021612,10]
[424739652,1781107848000,-151.0,0.000233,6]
[424739656,1781107848000,-196.94092238,0.00023367,3]
[424739654,1781107848000,-151.75,0.00023367,3]
[424739653,1781107848000,-303.5,0.00023367,3]
[424739651,1781107848000,-500.0,0.00023287,2]
[424739650,1781107848000,-188.51851936,0.00023226,2]
[424739647,1781107848000,-152.0,0.00023017,2]
[424739645,1781107848000,-500.0,0.00023013,2]
[424739658,1781107848000,-4396.89027739,0.00023377,2]
[424739646,1781107848000,-557.0,0.00023014,7]
[424739644,1781107848000,-500.0,0.00022739,2]
[424739639,1781107848000,-557.0,0.00022,2]
[424739638,1781107848000,-255.32054884,0.00021918,2]
[424739640,1781107848000,-500.0,0.00022191,2]
[424739649,1781107848000,-186.0,0.0002313,2]
[424739657,1781107848000,-793.41,0.00023367,10]
[424739642,1781107848000,-500.0,0.00022465,2]
[424739643,1781107848000,-796.0,0.000227,2]
[424739648,1781107848000,-246.69611188,0.00023038,2]
[424739641,1781107848000,-557.0,0.00022192,7]
[424739661,1781108440000,152.0,0.00020652,30]
[424739701,1781109032000,-317.4597,0.000178,2]
[424739689,1781109032000,-5000.0,0.00016116,2]
[424739687,1781109032000,-5000.0,0.00015955,2]
[424739691,1781109032000,-300.0,0.00017798,2]
[424739703,1781109032000,-559.80968326,0.000178,2]
[424739695,1781109032000,-500.0,0.00017799,2]
[424739705,1781109032000,-151.75,0.0001789,3]
[424739693,1781109032000,-300.0,0.00017798,2]
[424739696,1781109032000,-1378.5,0.000178,2]
[424739698,1781109032000,-8395.14569621,0.000178,2]
[424739706,1781109032000,-265.29505306,0.0001789,3]
[424739745,1781109039000,-8695.3136083,0.000178,2]
[424739748,1781109039000,-3702.15618065,0.000178,2]
[424739747,1781109039000,-17682.94880536,0.000178,2]
[424739746,1781109039000,-11285.35953066,0.000178,2]
[424739744,1781109039000,-58204.73270074,0.000178,2]
[424739767,1781109043000,-500.0,0.00017799,2]
[424739773,1781109043000,-402.68131346,0.00017799,2]
[424739774,1781109043000,-17108.31868659,0.000178,2]
[424739771,1781109043000,-500.0,0.00017799,2]
[424739769,1781109043000,-500.0,0.00017799,2]
[424739780,1781109046000,-4495.44628924,0.00017621,2]
[424739781,1781109338000,152.0,0.00020658,30]
[424739782,1781109580000,-152.0,0.00016157,2]
[424739783,1781109612000,-89.75538094,0.00016157,2]
[424739784,1781109612000,-4187.11461906,0.0001632,2]
[424739785,1781109634000,152.0,0.00020658,30]
[424739786,1781109642000,-1457.18,0.00016157,2]
[424739787,1781109658000,-152.0,0.00016157,2]
[424739788,1781109935000,152.0,0.00020666,30]
[424739886,1781110238000,-211.40903483,0.00017278,2]
[424739884,1781110238000,-500.0,0.00017278,2]
[424739893,1781110238000,-300.0,0.00017279,2]
[424739894,1781110238000,-300.0,0.00017279,2]
[424739895,1781110238000,-300.0,0.00017279,2]
[424739905,1781110238000,-592.52216236,0.00017599,2]
[424739900,1781110238000,-300.0,0.00017279,2]
[424739902,1781110238000,-1815.11704242,0.00017439,7]
[424739901,1781110238000,-300.0,0.00017279,2]
[424739891,1781110238000,-300.0,0.00017279,2]
[424739903,1781110238000,-374.25310244,0.00017524,2]
[424739904,1781110238000,-592.52216236,0.00017599,2]
[424739883,1781110238000,-280.32788352,0.00016941,7]
[424739892,1781110238000,-300.0,0.00017279,2]
[424739887,1781110238000,-300.0,0.00017279,2]
[424739889,1781110238000,-300.0,0.00017279,2]
[424739885,1781110238000,-563.01790944,0.00017278,2]
[424739888,1781110238000,-300.0,0.00017279,2]
[424739881,1781110238000,-1815.11704242,0.00016609,7]
[424739882,1781110238000,-1815.11704242,0.00016941,7]
[424739878,1781110238000,-192.273618,0.00016227,2]
[424739879,1781110238000,-322.005,0.00016298,2]
[424739880,1781110238000,-4276.8724628,0.00016514,2]
[424739876,1781110238000,-5000.0,0.00015677,2]
[424739877,1781110238000,-1000.0,0.00016198,2]
[424739907,1781110238000,-592.52216236,0.00017599,2]
[424739890,1781110238000,-300.0,0.00017279,2]
[424739906,1781110238000,-331.65871733,0.00017599,2]
[424739921,1781110238000,-615.31147629,0.00017599,2]
[424739897,1781110238000,-300.0,0.00017279,2]
[424739926,1781110238000,-615.31147629,0.00017599,2]
[424739929,1781110238000,-615.31147629,0.00017599,2]
[424739925,1781110238000,-615.31147629,0.00017599,2]
[424739931,1781110238000,-615.31147629,0.00017599,2]
[424739930,1781110238000,-615.31147629,0.00017599,2]
[424739922,1781110238000,-615.31147629,0.00017599,2]
[424739924,1781110238000,-615.31147629,0.00017599,2]
[424739935,1781110238000,-626.84856647,0.00017599,2]
[424739933,1781110238000,-626.84856647,0.00017599,2]
[424739923,1781110238000,-615.31147629,0.00017599,2]
[424739917,1781110238000,-592.52216236,0.00017599,2]
[424739918,1781110238000,-592.52216236,0.00017599,2]
[424739915,1781110238000,-592.52216236,0.00017599,2]
[424739899,1781110238000,-300.0,0.00017279,2]
[424739909,1781110238000,-592.52216236,0.00017599,2]
[424739936,1781110238000,-162357.37835906,0.000176,2]
[424739919,1781110238000,-592.52216236,0.00017599,2]
[424739912,1781110238000,-592.52216236,0.00017599,2]
[424739916,1781110238000,-592.52216236,0.00017599,2]
[424739913,1781110238000,-592.52216236,0.00017599,2]
[424739911,1781110238000,-592.52216236,0.00017599,2]
[424739914,1781110238000,-592.52216236,0.00017599,2]
[424739910,1781110238000,-592.52216236,0.00017599,2]
[424739908,1781110238000,-592.52216236,0.00017599,2]
[424739898,1781110238000,-300.0,0.00017279,2]
[424739896,1781110238000,-300.0,0.00017279,2]
[424739920,1781110238000,-615.31147629,0.00017599,2]
[424739942,1781110240000,-304.0,0.0001699,2]
[424739957,1781110423000,14993.45384309,0.00020657,120]
[424739958,1781110485000,14993.45384309,0.00020657,120]
[424739960,1781110542000,152.0,0.00020676,30]
[424739961,1781110542000,152.0,0.00020676,30]
[424739962,1781110547000,14993.45384309,0.00020657,120]
[424739964,1781110854000,-5000.0,0.00011523,2]
[424739965,1781110871000,-151.0,0.00011639,2]
[424739966,1781110887000,-300.0,0.00011998,2]
[424739967,1781110904000,-203.0,0.00011998,2]
[424739968,1781110921000,-500.0,0.00011999,2]
[424739969,1781110921000,165.0,0.0002067,120]
[424739973,1781110921000,170.0,0.00020335,30]
[424739971,1781110921000,165.0,0.0002267,120]
[424739972,1781110921000,165.0,0.0002367,120]
[424739970,1781110921000,165.0,0.0002167,120]
[424739974,1781110938000,-500.0,0.00011999,2]
[424739975,1781110955000,-500.0,0.00011999,2]
[424739976,1781110969000,170.0,0.0002069,120]
[424739977,1781110970000,170.0,0.0002169,120]
[424739978,1781110971000,170.0,0.0002269,120]
[424739979,1781110972000,170.0,0.0002369,120]
[424739981,1781111023000,161.0,0.0002069,120]
[424739982,1781111024000,161.0,0.0002169,120]
[424739983,1781111025000,161.0,0.0002269,120]
[424739984,1781111028000,161.0,0.0002369,120]
[424739985,1781111033000,161.0,0.00020345,30]
[424739986,1781111035000,161.0,0.00021345,30]
[424739987,1781111036000,161.0,0.00022345,30]
[424739988,1781111037000,165.0,0.00023345,30]
[424739990,1781111133000,156.0,0.0002069,120]
[424739991,1781111135000,156.0,0.0002169,120]
[424739992,1781111136000,156.0,0.0002269,120]
[424739993,1781111137000,156.0,0.0002369,120]
[424739994,1781111141000,152.0,0.00020697,30]
[424739998,1781111231000,500.0,0.00010999,2]
[424739999,1781111231000,5000.0,0.00010999,2]
[424740000,1781111236000,-379.55529104,0.00010999,2]
[424740001,1781111239000,-271.8617283,0.00010999,2]
[424740002,1781111242000,-537.93772011,0.00010999,2]
[424740003,1781111243000,-295.46297999,0.00010999,2]
[424740004,1781111245000,-334.95862592,0.00010999,2]
[424740005,1781111247000,-537.93772011,0.00010999,2]
[424740006,1781111250000,-537.93772011,0.00010999,2]
[424740007,1781111251000,-199.53298916,0.00010999,2]
[424740008,1781111253000,-1056.90563718,0.00010999,2]
[424740009,1781111256000,-302.26375056,0.00010889,2]
[424740010,1781111264000,-184.82456274,0.00010889,2]
[424740011,1781111265000,-300.0,0.00010889,2]
[424740012,1781111278000,162.0,0.0002069,120]
[424740013,1781111279000,162.0,0.0002169,120]
[424740014,1781111281000,162.0,0.0002269,120]
[424740015,1781111282000,-632.94354223,0.00010889,2]
[424740016,1781111282000,162.0,0.0002369,120]
[424740017,1781111288000,-218.51663288,0.00010889,2]
[424740018,1781111290000,-152.0,0.00010889,2]
[424740019,1781111291000,-686.4799977,0.00010889,2]
[424740020,1781111293000,-235.67396955,0.00010889,2]
[424740021,1781111311000,-456.27,0.0001078,2]
[424740022,1781111319000,-167.42108723,0.0001078,2]
[424740023,1781111332000,175.99971764,0.0002069,120]
[424740024,1781111341000,-336.88679517,0.0001078,2]
[424740025,1781111344000,-549.9041487,0.0001078,2]
[424740026,1781111352000,-720.75504863,0.0001078,2]
[424740028,1781111371000,-302.45461072,0.00010889,2]
[424740027,1781111371000,-148.94043793,0.0001078,2]
[424740053,1781111432000,-451.39504865,0.0001078,2]
[424740055,1781111432000,-1984.84293362,0.00010889,2]
[424740059,1781111432000,-288.96289384,0.00010998,2]
[424740060,1781111432000,-500.0,0.00010998,2]
[424740058,1781111432000,-500.0,0.00010998,2]
[424740063,1781111432000,-6413.39765416,0.00010999,2]
[424740061,1781111432000,-376.56137132,0.00010998,2]
[424740064,1781111432000,-363.68657816,0.00010999,2]
[424740057,1781111432000,-500.0,0.00010998,2]
[424740065,1781111432000,-1010.71945516,0.00010999,2]
[424740062,1781111432000,-300.0,0.00010998,2]
[424740087,1781111438000,-500.0,0.00011999,2]
[424740082,1781111438000,-300.0,0.00011217,2]
[424740080,1781111438000,-300.0,0.00011217,2]
[424740081,1781111438000,-300.0,0.00011217,2]
[424740075,1781111438000,-300.0,0.00011217,2]
[424740076,1781111438000,-300.0,0.00011217,2]
[424740078,1781111438000,-300.0,0.00011217,2]
[424740083,1781111438000,-300.0,0.00011217,2]
[424740077,1781111438000,-300.0,0.00011217,2]
[424740084,1781111438000,-300.0,0.00011217,2]
[424740085,1781111438000,-1879.40263948,0.000119,2]
[424740074,1781111438000,-300.0,0.00011217,2]
[424740073,1781111438000,-300.0,0.00011217,2]
[424740072,1781111438000,-300.0,0.00011217,2]
[424740071,1781111438000,-300.0,0.00011217,2]
[424740069,1781111438000,-7937.0045572,0.00010999,2]
[424740070,1781111438000,-300.0,0.00011217,2]
[424740088,1781111438000,-500.0,0.00011999,2]
[424740086,1781111438000,-500.0,0.00011999,2]
[424740092,1781111438000,-500.0,0.00011999,2]
[424740079,1781111438000,-300.0,0.00011217,2]
[424740097,1781111438000,-500.0,0.00011999,2]
[424740103,1781111438000,-421.0900999,0.00011999,2]
[424740102,1781111438000,-500.0,0.00011999,2]
[424740105,1781111438000,-500.0,0.00011999,2]
[424740104,1781111438000,-500.0,0.00011999,2]
[424740107,1781111438000,-450.0,0.00011999,2]
[424740109,1781111438000,-8058.2655604,0.00012,2]
[424740106,1781111438000,-500.0,0.00011999,2]
[424740108,1781111438000,-185.75518153,0.00011999,2]
[424740100,1781111438000,-500.0,0.00011999,2]
[424740098,1781111438000,-500.0,0.00011999,2]
[424740093,1781111438000,-500.0,0.00011999,2]
[424740094,1781111438000,-500.0,0.00011999,2]
[424740096,1781111438000,-387.27157129,0.00011999,2]
[424740095,1781111438000,-500.0,0.00011999,2]
[424740110,1781111438000,-1040.33193334,0.00012,2]
[424740099,1781111438000,-500.0,0.00011999,2]
[424740090,1781111438000,-500.0,0.00011999,2]
[424740089,1781111438000,-500.0,0.00011999,2]
[424740091,1781111438000,-500.0,0.00011999,2]
[424740101,1781111438000,-500.0,0.00011999,2]
[424740170,1781111441000,-500.0,0.00013698,2]
[424740166,1781111441000,-500.0,0.00013698,2]
[424740164,1781111441000,-500.0,0.00013698,2]
[424740157,1781111441000,-720.0,0.00013461,2]
[424740167,1781111441000,-500.0,0.00013698,2]
[424740165,1781111441000,-500.0,0.00013698,2]
[424740172,1781111441000,-500.0,0.00013698,2]
[424740163,1781111441000,-500.0,0.00013698,2]
[424740182,1781111441000,-500.0,0.00013698,2]
[424740179,1781111441000,-500.0,0.00013698,2]
[424740171,1781111441000,-502.85864446,0.00013698,2]
[424740174,1781111441000,-500.0,0.00013698,2]
[424740173,1781111441000,-500.0,0.00013698,2]
[424740176,1781111441000,-500.0,0.00013698,2]
[424740180,1781111441000,-500.0,0.00013698,2]
[424740177,1781111441000,-556.09149295,0.00013698,2]
[424740178,1781111441000,-500.0,0.00013698,2]
[424740169,1781111441000,-500.0,0.00013698,2]
[424740175,1781111441000,-500.0,0.00013698,2]
[424740161,1781111441000,-500.0,0.00013698,2]
[424740151,1781111441000,-228.81565148,0.0001296,7]
[424740160,1781111441000,-500.0,0.00013698,2]
[424740140,1781111441000,-2355.81506172,0.00012,2]
[424740141,1781111441000,-459.34763194,0.00012,2]
[424740142,1781111441000,-0.80615361,0.00012,2]
[424740144,1781111441000,-228.81565149,0.00012,7]
[424740143,1781111441000,-80941.06147,0.00012,2]
[424740146,1781111441000,-431.839745,0.00012175,2]
[424740156,1781111441000,-228.8156515,0.0001344,7]
[424740145,1781111441000,-420.0,0.00012085,2]
[424740150,1781111441000,-431.839745,0.00012688,2]
[424740147,1781111441000,-600.0,0.00012237,2]
[424740181,1781111441000,-500.0,0.00013698,2]
[424740153,1781111441000,-431.839745,0.000132,2]
[424740155,1781111441000,-1879.40263947,0.00013357,2]
[424740148,1781111441000,-228.81565148,0.0001224,7]
[424740149,1781111441000,-228.81565148,0.000126,7]
[424740154,1781111441000,-150.12955755,0.00013233,14]
[424740152,1781111441000,-8644.6252381,0.00013128,2]
[424740158,1781111441000,-500.0,0.00013698,2]
[424740159,1781111441000,-500.0,0.00013698,2]
[424740168,1781111441000,-500.0,0.00013698,2]
[424740183,1781111441000,-502.9351211,0.00013698,2]
[424740162,1781111441000,-500.0,0.00013698,2]
[424740190,1781111441000,-745.53,0.00013698,2]
[424740208,1781111441000,-194.74077102,0.0001454,2]
[424740216,1781111441000,-218.6092964,0.0001454,2]
[424740217,1781111441000,-185.8835558,0.0001454,2]
[424740218,1781111441000,-151.96052366,0.0001454,2]
[424740219,1781111441000,-154.5823274,0.0001454,2]
[424740211,1781111441000,-207.7626682,0.0001454,2]
[424740210,1781111441000,-197.57671184,0.0001454,2]
[424740215,1781111441000,-166.62754939,0.0001454,2]
[424740212,1781111441000,-150.2977079,0.0001454,2]
[424740209,1781111441000,-153.92008496,0.0001454,2]
[424740214,1781111441000,-159.16881908,0.0001454,2]
[424740221,1781111441000,-163.73358454,0.0001454,2]
[424740226,1781111441000,-152.44038271,0.00014558,2]
[424740228,1781111441000,-864.0,0.00014807,2]
[424740227,1781111441000,-431.839745,0.00014738,2]
[424740223,1781111441000,-153.94417986,0.0001454,2]
[424740224,1781111441000,-160.07660394,0.0001454,2]
[424740222,1781111441000,-160.03387044,0.0001454,2]
[424740185,1781111441000,-500.0,0.00013698,2]
[424740225,1781111441000,-161.91755691,0.00014558,2]
[424740220,1781111441000,-186.1133675,0.0001454,2]
[424740207,1781111441000,-194.88382972,0.00014528,2]
[424740213,1781111441000,-188.85694281,0.0001454,2]
[424740203,1781111441000,-745.53,0.00013794,2]
[424740191,1781111441000,-745.53,0.00013698,2]
[424740206,1781111441000,-384.174884,0.00014401,2]
[424740184,1781111441000,-500.0,0.00013698,2]
[424740192,1781111441000,-1000.0,0.00013699,2]
[424740193,1781111441000,-2814.154456,0.00013699,2]
[424740186,1781111441000,-500.0,0.00013698,2]
[424740189,1781111441000,-745.53,0.00013698,2]
[424740188,1781111441000,-745.53,0.00013698,2]
[424740194,1781111441000,-2814.154456,0.00013699,2]
[424740195,1781111441000,-2814.154456,0.00013699,2]
[424740187,1781111441000,-500.0,0.00013698,2]
[424740197,1781111441000,-199.388035,0.00013699,2]
[424740199,1781111441000,-500.0,0.00013794,2]
[424740196,1781111441000,-2814.154456,0.00013699,2]
[424740204,1781111441000,-150.12955755,0.00013934,2]
[424740200,1781111441000,-500.0,0.00013794,2]
[424740202,1781111441000,-500.0,0.00013794,2]
[424740198,1781111441000,-431.839745,0.00013713,2]
[424740201,1781111441000,-502.93837888,0.00013794,2]
[424740205,1781111441000,-431.839745,0.00014225,2]
[424740269,1781111442000,-209.49659308,0.00015257,2]
[424740268,1781111442000,-159.74215022,0.00015257,2]
[424740267,1781111442000,-323.83511382,0.00015257,2]
[424740264,1781111442000,-389.48154204,0.00015237,2]
[424740260,1781111442000,-320.06774089,0.00015237,2]
[424740262,1781111442000,-307.88835972,0.00015237,2]
[424740266,1781111442000,-194.66325005,0.00015257,2]
[424740261,1781111442000,-167.22271191,0.00015237,2]
[424740263,1781111442000,-178.30810605,0.00015237,2]
[424740270,1781111442000,-180.79411426,0.00015257,2]
[424740265,1781111442000,-307.84016993,0.00015237,2]
[424740272,1781111442000,-190.98784819,0.00015257,2]
[424740280,1781111442000,-384.174884,0.00015409,2]
[424740271,1781111442000,-375.16292563,0.00015257,2]
[424740274,1781111442000,-197.4954729,0.00015257,2]
[424740279,1781111442000,-304.88076542,0.00015257,2]
[424740276,1781111442000,-191.16749407,0.00015257,2]
[424740278,1781111442000,-153.91643618,0.00015257,2]
[424740275,1781111442000,-179.69188042,0.00015257,2]
[424740277,1781111442000,-150.11980918,0.00015257,2]
[424740281,1781111442000,-199.96713329,0.0001569,2]
[424740283,1781111442000,-175.58296072,0.0001569,2]
[424740284,1781111442000,-159.60160269,0.0001569,2]
[424740258,1781111442000,-372.226735,0.00015237,2]
[424740286,1781111442000,-584.65148915,0.0001569,2]
[424740273,1781111442000,-179.14268057,0.00015257,2]
[424740256,1781111442000,-217.45122166,0.00015237,2]
[424740230,1781111442000,-176.51962302,0.00014869,2]
[424740257,1781111442000,-309.16465479,0.00015237,2]
[424740282,1781111442000,-199.11420604,0.0001569,2]
[424740229,1781111442000,-1879.40263947,0.00014815,2]
[424740231,1781111442000,-2814.154456,0.000149,2]
[424740238,1781111442000,-389.76765943,0.00015225,2]
[424740237,1781111442000,-187.63402733,0.00015225,2]
[424740241,1781111442000,-211.37788396,0.00015237,2]
[424740239,1781111442000,-493.45,0.00015227,3]
[424740240,1781111442000,-154.67130856,0.00015237,2]
[424740242,1781111442000,-159.18646159,0.00015237,2]
[424740234,1781111442000,-2814.154456,0.000149,2]
[424740232,1781111442000,-2814.154456,0.000149,2]
[424740233,1781111442000,-2814.154456,0.000149,2]
[424740235,1781111442000,-358.82958396,0.00015,2]
[424740236,1781111442000,-192.273618,0.00015068,2]
[424740243,1781111442000,-153.55932348,0.00015237,2]
[424740245,1781111442000,-191.41989793,0.00015237,2]
[424740250,1781111442000,-377.71388561,0.00015237,2]
[424740244,1781111442000,-160.03430416,0.00015237,2]
[424740246,1781111442000,-186.68670463,0.00015237,2]
[424740249,1781111442000,-300.59541581,0.00015237,2]
[424740248,1781111442000,-415.5253364,0.00015237,2]
[424740247,1781111442000,-395.15342369,0.00015237,2]
[424740251,1781111442000,-318.33763815,0.00015237,2]
[424740252,1781111442000,-333.25509878,0.00015237,2]
[424740255,1781111442000,-303.92104733,0.00015237,2]
[424740254,1781111442000,-371.76711159,0.00015237,2]
[424740253,1781111442000,-437.2185928,0.00015237,2]
[424740259,1781111442000,-327.46716908,0.00015237,2]
[424740289,1781111442000,-2814.154456,0.00015702,2]
[424740315,1781111442000,-334.44542383,0.00015702,2]
[424740288,1781111442000,-2814.154456,0.00015702,2]
[424740326,1781111442000,-217.26432489,0.00015722,2]
[424740324,1781111442000,-164.72398765,0.00015722,2]
[424740327,1781111442000,-152.24017909,0.00015722,2]
[424740328,1781111442000,-319.48430045,0.00015722,2]
[424740336,1781111442000,-300.23961837,0.00015722,2]
[424740337,1781111442000,-307.83287236,0.00015722,2]
[424740338,1781111442000,-457.32114814,0.00015722,2]
[424740331,1781111442000,-562.74438844,0.00015722,2]
[424740329,1781111442000,-418.99318617,0.00015722,2]
[424740335,1781111442000,-382.33498813,0.00015722,2]
[424740333,1781111442000,-394.99094581,0.00015722,2]
[424740332,1781111442000,-381.97569639,0.00015722,2]
[424740318,1781111442000,-356.6162121,0.00015702,2]
[424740334,1781111442000,-359.38376084,0.00015722,2]
[424740340,1781111442000,-227.05515032,0.00015722,2]
[424740341,1781111442000,-349.75075647,0.00015723,2]
[424740343,1781111442000,-279.75146193,0.00015835,7]
[424740344,1781111442000,-500.0,0.00015853,2]
[424740342,1781111442000,-156.0,0.00015735,2]
[424740345,1781111442000,-500.0,0.00015853,2]
[424740346,1781111442000,-500.0,0.00015853,2]
[424740347,1781111442000,-500.0,0.00015853,2]
[424740349,1781111442000,-745.53,0.00015853,2]
[424740348,1781111442000,-500.0,0.00015853,2]
[424740350,1781111442000,-745.53,0.00015853,2]
[424740285,1781111442000,-210.74116649,0.0001569,2]
[424740339,1781111442000,-243.45759197,0.00015722,2]
[424740325,1781111442000,-485.75267074,0.00015722,2]
[424740330,1781111442000,-361.58822853,0.00015722,2]
[424740323,1781111442000,-156.49385908,0.00015722,2]
[424740287,1781111442000,-500.0,0.00015701,2]
[424740322,1781111442000,-389.32650009,0.00015722,2]
[424740292,1781111442000,-309.34261713,0.00015702,2]
[424740291,1781111442000,-2814.154456,0.00015702,2]
[424740293,1781111442000,-171.38526875,0.00015702,2]
[424740290,1781111442000,-2814.154456,0.00015702,2]
[424740294,1781111442000,-422.75576792,0.00015702,2]
[424740298,1781111442000,-279.97912009,0.00015702,2]
[424740297,1781111442000,-320.15320788,0.00015702,2]
[424740299,1781111442000,-156.60111961,0.00015702,2]
[424740296,1781111442000,-307.11864695,0.00015702,2]
[424740303,1781111442000,-373.37340927,0.00015702,2]
[424740300,1781111442000,-320.06860832,0.00015702,2]
[424740301,1781111442000,-382.83979585,0.00015702,2]
[424740295,1781111442000,-318.37292317,0.00015702,2]
[424740321,1781111442000,-461.76025489,0.00015702,2]
[424740319,1781111442000,-480.22981181,0.00015702,2]
[424740314,1781111442000,-480.10161133,0.00015702,2]
[424740320,1781111442000,-584.22231305,0.00015702,2]
[424740317,1781111442000,-461.83253958,0.00015702,2]